Workbook

Sheet Vejledning
A1: Vejledning til regneark, lønberegning.
A3: Regnearket anvendes til kontrol af lønsedler.
A4: Regnearket kan anvendes af UU vejledere ansat ved Ungdommens Uddannelsesvejlednng i Odense.
A7: Brug arket "UU vejledere", der kan kun indtastes i de gule felter!
A9: Beskæftigelsesgrad indtastes med ugentligt timetal (fremgår af lønsedlen)
A10: Grundløn og andre tillæg gældende for alle fremkommer automatisk.
A11: Tillæg for anciennitet ved at taste 1 ved relevant anciennitet (fremgår af lønsedlen)
A12: Funktions- og kvalifikationsløn indtastes med 1 ud for funktionen/kvalifikationen
A14: Nogle vejledere har personlige tillæg. Disse indtastes med det månedlige beløb, der fremgår af lønsedlen.
A15: Der kan evt. indtastes navn på disse tillæg.
A17: Månedslønnen fremkommer automatisk og er sammenlignelig med lønsedlen
A19: Bemærk: Der kan fremkomme øreafvigelser p.g.a. afrunding.
A21: Kørselsgodtgørelse o.l. udbetales konkret og fremgår ikke af lønberegneren
A23: Kommentarer eller rettelser er velkomne, kontakt Mads Alnor, Odense Lærerforening.

Sheet UU vejledere
A1: Lønberegning niveau | C1: =satser!F1 -> 01.04.2026
A2: UU Vejledere
A5: Navn:
A6: Måned:
A8: Beskæftigelsesgrad (indsæt ugentligt timetal) | B8: 37
C9: Månedsløn
A10: Grundløn trin 31 | B10: 31 | C10: =satser!B11*B8/37 -> 33260.08333
A11: Grundlønstillæg - lærer | C11: =IF(B13=1,"",satser!I3*B8/37) -> 413.3445
A12: Anciennitetstillæg (trin 31-35) | C12: =IF((B12+B13)>1,"Fejl: kun et tillæg",IF(B12=1,satser!D15*B8/37,"")) -> 
A13: Anciennitetstillæg (trin 31-40) | C13: =IF((B12+B13)>1,"Fejl: kun et tillæg",IF(B13=1,satser!D20*B8/37,"")) -> 
A14: Anciennitetstillæg - lærer | C14: =IF(AND(B14=1,B13=1),satser!I4*B8/37,"") -> 
A15: Almen | C15: =satser!I8*(B8/37) -> 661.3512
A17: Funktions- og kvalifikationsløn: Tast 1 i det gule felt, hvis omfattet:
A18: Vejledertillæg | C18: =satser!I12*B8/37 -> 1088.47
A19: Vejleder § 3, stk. 3 | C19: =satser!I13*B8/37 -> 1446.71
A20: Vejleder § 3, stk. 4 | C20: =satser!I14*B8/37 -> 1033.36
A21: TR uden forhandlingskompetence | C21: =(IF(B21>1,"Fejl:kun et tillæg",IF(B21>0,B21*satser!I15,""))) -> 
A22: TR uden forhandlingskompetence > 35 | C22: =(IF(B22>1,"Fejl:kun et tillæg",IF(B22>0,B22*satser!I16,""))) -> 
A23: AMR funktion | C23: =(IF(B23>1,"Fejl:kun et tillæg",IF(B23>0,B23*satser!I17,""))) -> 
A25: Vejlederuddannelse | C25: =(IF((B25+B26)>1,"Fejl:kun et tillæg",IF(B25>0,B25*satser!I20*B8/37,""))) -> 
A26: Anden diplom/master | C26: =(IF((B25+B26)>1,"Fejl:kun et tillæg",IF(B26>0,B26*satser!I21*B8/37,""))) -> 
A28: Andre tillæg, herunder personlige tillæg. Indtast beløb fra lønseddel
A35: Fast løn i alt | C35: =SUM(C10:C34) -> 37903.31903

Sheet satser
A1: Satser pr. | F1: 01.04.2026
G2: Grundbeløb | I2: Månedligt beløb pr. | J2: =F1 -> 01.04.2026
F3: Grundlønstillæg - lærer | G3: 3000 | I3: =G3*C28/12 -> 413.3445
F4: Anciennitetstillæg - lærer | G4: 10000 | I4: =G4*C28/12 -> 1377.815
F5: Grundlønstillæg - skolekonsulent | H5: 12000 | I5: =H5*C28/12 -> 1653.378
A6: Løntrin | B6: Pr. måned | C6: Anciennitetstillæg | F6: Stillingstillæg - lærer | H6: 13000 | I6: =H6*C28/12 -> 1791.1595
F7: Pension - stillingstilæg lærer | H7: 2202 | I7: =H7*C28/12 -> 303.394863 | J7: Beløbet er 17,3% af 13.000 fratrukket særlig ferie
F8: Almentillæg | G8: 4800 | I8: =(G8*C28)/12 -> 661.3512
G10: Grundbeløb | I10: Månedligt beløb pr. | J10: =F1 -> 01.04.2026
A11: 31 | B11: 33260.08333 | F11: Funktions- og kvalifikationsløn: | G11: Vejledere | I11: Vejledere
A12: 32 | B12: 33796 | F12: Centralt vejledertillæg | G12: 7900 | I12: =ROUND(G12*$C$28/12,2) -> 1088.47
A13: 33 | B13: 34342.91667 | F13: Vejleder § 3, stk. 3 | G13: 10500 | I13: =ROUND(G13*$C$28/12,2) -> 1446.71
A14: 34 | B14: 34901.58333 | F14: Vejleder § 3, stk. 4 | G14: 7500 | I14: 1033.36
A15: 35 | B15: 35471 | C15: 31 - 35 | D15: =B15-B11 -> 2210.916667 | F15: TR uden forhandlingskompetence | G15: 5350 | I15: 737.13
A16: 36 | B16: 36052.58333 | F16: TR uden forhandlingskompetence > 35 | G16: 6000 | I16: 826.69
A17: 37 | B17: 36645.58333 | F17: AMR funktion | G17: 5350 | I17: =ROUND(G17*$C$28/12,2) -> 737.13
A18: 38 | B18: 37278.16667
A19: 39 | B19: 37908.25
A20: 40 | B20: 38551.41667 | C20: 31 - 40 | D20: =B20-B11 -> 5291.333333 | F20: Vejlederuddannelse | G20: 10500 | I20: =ROUND(G20*$C$28/12,2) -> 1446.71
F21: Anden diplom/master | G21: 7500 | I21: =ROUND(G21*$C$28/12,2) -> 1033.36
A28: Reguleringsfaktor: | C28: 1.653378
